bitfinex/quotes_ETHUSD_20260308
["timestamp","ask_amount","ask_price","bid_price","bid_amount"]
[1772969983461,0.001,1952.2,1951.9,0.9214201]
[1772969983966,2.25939039,1952.6,1952.0,0.9203201]
[1772969984159,0.9790157,1952.6,1952.0,0.9203201]
[1772969984368,0.001,1952.6,1952.2,0.9203201]
[1772969984540,0.001,1952.6,1952.3,1.7483201]
[1772969985369,0.001,1952.6,1952.4,0.9203201]
[1772969987966,0.001,1952.7,1952.5,0.9203201]
[1772969989350,0.001,1952.9,1952.6,0.9203201]
[1772969989555,0.001,1952.9,1952.7,0.828]
[1772969989976,1.28115183,1952.9,1952.7,0.828]
[1772969990353,0.001,1952.9,1952.7,0.828]
[1772969990565,0.001,1952.9,1952.7,1.7483201]
[1772969991378,0.9780157,1953.3,1952.8,0.9203201]
[1772969992566,0.9780157,1953.1,1952.7,0.828]
[1772969993865,0.9780157,1953.1,1952.7,1.7483201]
[1772969994388,1.27995084,1953.2,1952.7,1.7483201]
[1772969994566,0.9780157,1953.3,1952.8,0.9203201]
[1772969995083,0.9780157,1953.4,1952.8,0.9203201]
[1772969996582,1.27988532,1953.3,1952.8,2.20051923]
[1772969996787,1.27988532,1953.3,1952.9,0.9203201]
[1772969998968,2.25786159,1953.4,1953.0,0.9203201]
[1772969999373,1.27978941,1953.5,1953.2,0.9203201]
[1772969999757,2.25773526,1953.6,1953.2,0.9203201]
[1772970000373,1.27966313,1953.7,1953.2,0.9203201]
[1772970001293,1.27966313,1953.7,1953.3,0.9203201]
[1772970001515,5.11813539,1953.9,1953.3,0.9203201]
[1772970001999,0.9780157,1953.8,1953.1,0.828]
[1772970002790,0.9780157,1953.8,1953.1,3.05350158]
[1772970003890,0.9780157,1953.8,1952.2,6.65941649]
[1772970003891,0.88617514,1953.6,1952.8,0.94253144]
[1772970004103,0.88617514,1953.6,1952.8,1.77053144]
[1772970005994,0.88617514,1953.4,1952.8,1.77053144]
[1772970006569,0.88617514,1953.4,1952.9,0.94253144]
[1772970007092,0.88617514,1953.4,1952.8,0.828]
[1772970007296,0.88617514,1953.4,1952.9,0.0011]
[1772970008089,0.88617514,1953.2,1952.9,0.0011]
[1772970008395,0.88617514,1953.5,1952.9,0.0011]
[1772970012908,0.88617514,1953.3,1952.9,0.0011]
[1772970014799,2.16611596,1953.3,1952.9,0.94363144]
[1772970015404,2.16597857,1953.5,1953.0,0.94253144]
[1772970015609,2.16593125,1953.5,1953.0,0.94253144]
[1772970015910,0.88617514,1953.4,1952.9,1.28123803]
[1772970016112,0.88617514,1953.4,1952.9,2.22376947]
[1772970017186,2.16599677,1953.4,1952.9,2.22376947]
[1772970018205,0.88617514,1953.4,1953.0,0.94253144]
[1772970019107,0.88617514,1953.4,1953.0,0.84080571]
[1772970019814,1.27979444,1953.5,1953.1,0.94253144]
[1772970020022,2.16596958,1953.5,1953.1,0.94253144]
[1772970020314,0.88617514,1953.4,1953.1,0.94253144]
[1772970020522,0.88617514,1953.4,1953.0,1.28112595]
[1772970021020,0.88617514,1953.4,1953.0,2.22365739]
[1772970021423,0.88617514,1953.4,1953.0,0.0011]
[1772970023737,0.88617514,1953.2,1952.8,0.8291]
[1772970025526,0.88617514,1953.2,1952.8,1.74602411]
[1772970025698,2.16602392,1953.4,1952.9,0.94253144]
[1772970026521,0.88617514,1953.4,1952.9,0.94253144]
[1772970026719,2.16599604,1953.4,1952.9,0.94253144]
[1772970027101,0.88617514,1953.4,1952.9,0.94253144]
[1772970027422,0.88617514,1953.5,1952.9,0.94253144]
[1772970028024,0.88617514,1953.5,1953.0,1.28008192]
[1772970028202,0.88617514,1953.4,1953.0,1.28008192]
[1772970029304,0.88617514,1953.4,1952.9,0.94253144]
[1772970029725,0.88617514,1953.4,1952.9,2.22267566]
[1772970029930,0.88617514,1953.4,1952.9,0.94253144]
[1772970030332,2.16606046,1953.3,1952.9,0.94253144]
[1772970031531,0.88617514,1953.5,1953.0,0.94253144]
[1772970032234,0.88617514,1953.5,1953.0,0.94363144]
[1772970032436,0.88717514,1953.3,1953.0,0.0011]
[1772970034633,2.16706637,1953.3,1953.0,0.0011]
[1772970034831,1.28089123,1953.3,1953.0,0.87140027]
[1772970035334,2.13225207,1953.3,1953.0,0.0011]
[1772970035539,0.85136084,1953.2,1953.0,0.0011]
[1772970035911,0.85136084,1953.2,1952.9,0.0011]
[1772970036826,1.28001638,1953.1,1952.9,0.0011]
[1772970037027,0.85136084,1953.0,1952.9,0.0011]
[1772970039039,2.13144276,1953.0,1952.9,0.0011]
[1772970039339,2.13144276,1953.0,1952.8,0.0011]
[1772970039853,1.28008192,1953.0,1952.8,0.0011]
[1772970040012,2.13144276,1953.0,1952.8,0.0011]
[1772970044046,0.85136084,1952.9,1952.7,0.0011]
[1772970045746,0.85136084,1952.7,1952.5,0.0011]
[1772970048135,2.13168622,1952.7,1952.5,0.0011]
[1772970051848,1.28032538,1952.7,1952.5,0.0011]
[1772970052055,0.85136084,1952.6,1952.5,0.0011]
[1772970052242,2.13173983,1952.6,1952.4,0.0011]
[1772970054544,0.85136084,1952.5,1952.2,2.3641]
[1772970054742,1.28037899,1952.6,1952.3,0.35603002]
[1772970055837,2.13168672,1952.7,1952.3,0.35603002]
[1772970057967,2.13168672,1952.7,1952.4,0.0011]
[1772970058365,0.001,1952.6,1952.4,0.0011]
[1772970058665,0.001,1952.6,1952.4,0.39965301]
[1772970060459,0.85236084,1952.6,1952.4,0.0011]
[1772970060664,0.001,1952.6,1952.4,0.0011]
[1772970060831,0.001,1952.6,1952.4,0.39631165]
[1772970063564,2.21618579,1952.6,1952.2,2.3641]
[1772970063763,0.93484164,1952.5,1952.2,2.3641]
[1772970064157,1.28134415,1952.6,1952.3,0.00996744]
[1772970064773,0.001,1952.6,1952.3,0.00996744]
[1772970065353,0.93584164,1952.6,1952.3,0.00996744]
[1772970065870,0.93484164,1952.5,1952.2,0.0011]
[1772970066444,0.93484164,1952.5,1952.0,0.00153886]
[1772970068776,0.93484164,1952.3,1952.0,0.00153886]
[1772970070586,0.93484164,1952.3,1952.2,0.0011]
[1772970070755,0.93484164,1952.3,1952.0,0.00153886]
[1772970071081,2.21544813,1952.2,1952.0,0.00263886]
[1772970074690,0.93484164,1952.1,1951.8,0.0011]
[1772970074865,0.93484164,1952.1,1951.6,0.0011]
[1772970075677,0.93484164,1952.1,1951.6,0.00571153]
[1772970076688,0.93352221,1951.9,1951.6,0.0011]
[1772970077792,0.93352221,1951.9,1951.6,0.0024924]
[1772970078467,0.93352221,1951.9,1951.6,0.0011]
[1772970078667,0.93352221,1951.7,1951.6,0.0011]
[1772970078997,0.93352221,1951.7,1951.4,0.0011]
[1772970079975,0.93352221,1951.7,1951.2,0.0011]
[1772970080765,0.93297221,1951.5,1951.2,0.0011]
[1772970082010,0.93297221,1951.7,1951.2,0.0011]
[1772970082779,2.21397241,1951.6,1951.2,0.0011]
[1772970082964,2.21397241,1951.6,1951.3,0.0011]
[1772970083280,0.93297221,1951.5,1951.3,0.0011]
[1772970084498,0.93297221,1951.5,1951.0,0.00263886]
[1772970084670,0.93297221,1951.5,1951.1,0.0033]
[1772970085371,2.21409468,1951.5,1951.1,0.0033]
[1772970085598,0.93297221,1951.4,1951.1,0.0033]
[1772970085965,0.93297221,1951.4,1951.2,0.0033]
[1772970086266,0.93297221,1951.4,1951.1,0.0033]
[1772970086884,0.93297221,1951.4,1951.0,0.00263886]
[1772970087078,0.93297221,1951.4,1951.1,0.0033]
[1772970087279,0.93297221,1951.4,1951.0,0.00593886]
[1772970087776,0.93297221,1951.2,1951.0,0.00593886]
[1772970088172,0.93297221,1951.2,1950.9,0.0011]
[1772970089603,0.93297221,1951.2,1950.7,0.0011]
[1772970089801,1.28132848,1951.1,1950.7,0.0011]
[1772970090018,2.21430069,1951.1,1950.7,0.0011]
[1772970090307,0.93297221,1951.0,1950.7,0.0011]
[1772970090706,2.21427212,1951.2,1950.7,0.0011]
[1772970090908,0.93297221,1951.4,1950.7,0.0011]
[1772970092403,0.93297221,1951.2,1950.7,0.0011]
[1772970094573,2.21427316,1951.2,1950.9,0.0011]
[1772970096100,0.93297221,1951.1,1950.9,0.0011]
[1772970096669,2.21436636,1951.0,1950.9,0.0011]
[1772970097599,0.93242221,1950.9,1950.7,0.0011]
[1772970099284,1.28142572,1951.0,1950.7,0.0011]
[1772970099483,2.21384793,1951.0,1950.7,0.0011]
[1772970099985,2.21382583,1951.0,1950.7,0.0011]
[1772970101210,0.93242221,1951.3,1950.7,0.0011]
[1772970101502,0.93242221,1951.2,1950.7,0.0011]
[1772970102333,0.93242221,1950.8,1950.0,0.00153886]
[1772970102542,0.93242221,1950.6,1950.0,0.00153886]
[1772970102807,0.92,1950.7,1949.3,0.829]
[1772970102808,0.93165278,1950.4,1949.3,0.829]
[1772970102977,0.985536,1950.7,1949.3,0.829]
[1772970102978,0.93165278,1950.2,1949.3,0.829]
[1772970103174,0.93165278,1949.8,1949.3,0.829]
[1772970103699,0.93165278,1949.9,1949.3,0.829]
[1772970104083,0.93165278,1949.9,1949.2,0.829]
[1772970105396,0.93165278,1949.5,1946.2,10.71700119]
[1772970105600,0.93165278,1949.5,1947.1,1.28396076]
[1772970105601,0.065536,1948.8,1947.1,1.28396076]
[1772970105776,0.93165278,1948.3,1947.0,1.28551504]
[1772970105986,0.75393416,1949.4,1946.4,1.28441398]
[1772970105987,0.93165278,1948.1,1946.4,1.28441398]
[1772970106232,0.93165278,1947.5,1946.3,0.1564245]
[1772970106378,0.93165278,1947.3,1946.3,0.1564245]
[1772970106578,0.93165278,1947.3,1946.3,1.44090508]
[1772970106779,0.93165278,1947.3,1946.4,0.829]
[1772970107019,0.93165278,1947.3,1946.3,1.44090508]
[1772970107180,0.93165278,1947.2,1946.3,2.26990508]
[1772970107379,0.22998408,1947.4,1946.3,2.26990508]
[1772970107706,0.93165278,1947.3,1946.4,0.829]
[1772970108403,1.16163686,1947.4,1946.5,0.829]
[1772970108612,0.065536,1947.3,1946.3,1.44090508]
[1772970108780,0.065536,1947.3,1943.7,0.23448169]
[1772970108781,0.93165278,1946.8,1943.7,0.23448169]
[1772970108986,0.14948499,1946.0,1945.0,0.7211584]
[1772970109185,0.3492008,1945.9,1945.1,0.7211584]
[1772970109384,0.3492008,1945.9,1944.8,1.28547922]
[1772970109600,0.3492008,1945.9,1944.9,0.829]
[1772970109803,0.93165278,1946.2,1944.9,0.829]
[1772970110002,0.00153886,1946.0,1945.0,1.2009576]
[1772970110193,0.00153886,1946.0,1945.1,0.3719576]
[1772970110393,0.00153886,1947.0,1945.3,0.065536]
[1772970110592,0.00153886,1947.0,1945.4,1.98632404]
[1772970110806,0.93165278,1946.9,1945.5,0.829]
[1772970111112,0.93165278,1946.9,1945.5,0.03134698]
[1772970111314,0.93165278,1946.9,1945.8,0.00862528]
[1772970111611,0.93165278,1946.9,1945.9,0.829]
[1772970111806,0.93165278,1946.9,1946.0,0.8517217]
[1772970112011,0.93165278,1946.9,1945.7,1.29350989]
[1772970112187,0.93165278,1946.9,1945.8,0.0227217]
[1772970112387,0.00153886,1947.0,1945.9,0.00678778]
[1772970112612,0.00153886,1947.0,1945.9,0.02950948]
[1772970113110,0.00153886,1947.0,1946.3,0.00678778]
[1772970113315,0.254629,1947.4,1946.5,1.28931829]
[1772970113512,0.254629,1947.4,1946.6,0.83396176]
[1772970113820,0.24965969,1947.4,1946.6,0.83396176]
[1772970114501,0.24965969,1947.4,1946.7,0.85018284]
[1772970114890,0.24965969,1947.4,1946.8,0.02118284]
[1772970115095,0.93165278,1947.8,1946.8,0.00086581]
[1772970115312,0.00153886,1948.0,1946.8,1.28415861]
[1772970115518,0.9356763,1948.0,1946.9,0.829]
[1772970115890,0.00153886,1948.0,1946.9,0.829]
[1772970116110,0.00153886,1948.0,1947.0,0.00453652]
[1772970116888,0.00153886,1948.0,1947.1,0.00453652]
[1772970117315,0.93413744,1948.6,1947.4,0.00268785]
[1772970117504,0.93413744,1948.6,1947.5,0.83168785]
[1772970117707,0.93413744,1948.9,1947.6,0.00268785]
[1772970118090,0.93413744,1948.9,1947.7,0.829]
[1772970118399,0.93413744,1948.9,1947.7,0.82987247]
[1772970118804,0.93413744,1948.9,1947.8,0.829]
[1772970119301,0.93413744,1948.8,1947.5,1.28369704]
[1772970119498,0.93413744,1948.6,1947.1,5.13580406]
[1772970119814,0.93413744,1948.6,1947.2,0.829]
[1772970121119,0.93413744,1948.6,1947.1,5.13580406]
[1772970121321,1.28303823,1948.5,1947.2,5.13505186]
[1772970121617,0.93413744,1948.4,1947.3,0.829]
[1772970121992,0.93413744,1948.4,1947.1,1.28389482]
[1772970122192,0.93413744,1948.4,1947.2,0.829]
[1772970124219,0.93413744,1948.4,1947.0,5.13711815]
[1772970124519,0.93413744,1948.3,1947.1,0.829]
[1772970124695,0.93413744,1948.8,1947.1,0.829]
[1772970124897,0.93413744,1948.8,1947.2,0.14948499]
[1772970125825,0.93413744,1948.8,1947.4,0.00157204]
[1772970126124,0.93413744,1948.8,1947.2,0.065536]
[1772970126125,0.93413744,1948.8,1947.1,0.00157204]
[1772970126322,0.92776666,1948.6,1947.0,0.00153886]
[1772970126621,0.92776666,1948.6,1947.1,0.829]
[1772970126789,0.92776666,1948.6,1947.0,0.00153886]
[1772970126988,0.92776666,1948.6,1947.1,0.829]
[1772970127807,1.28290655,1948.7,1947.0,0.00153886]
[1772970127808,0.88489696,1948.2,1947.0,0.00153886]
[1772970128823,0.88489696,1948.0,1947.0,1.28556556]
[1772970130627,0.88489696,1948.0,1947.1,0.0011]
[1772970130927,0.88489696,1947.9,1947.1,0.0011]
[1772970131427,0.88489696,1947.9,1947.2,0.829]
[1772970132326,0.88489696,1947.9,1947.3,0.829]
[1772970132824,0.88489696,1947.9,1947.4,1.28376296]
[1772970133026,0.88489696,1947.8,1947.3,0.829]
[1772970134427,0.88489696,1948.2,1947.3,0.829]
[1772970134927,0.88489696,1948.1,1947.4,1.28376296]
[1772970135228,0.88489696,1948.1,1947.5,0.829]
[1772970137043,0.88489696,1948.0,1947.5,2.11266178]
[1772970137735,0.88489696,1948.0,1947.5,1.28366178]
[1772970137940,0.88489696,1948.0,1947.5,2.11266178]
[1772970138235,2.18376654,1948.3,1947.5,2.11266178]
[1772970138402,0.89955363,1948.2,1947.5,2.11266178]
[1772970138802,0.89955363,1948.2,1947.6,0.829]
[1772970139031,2.18280292,1948.2,1947.7,1.28356523]
[1772970139529,2.18280292,1948.2,1947.2,5.13555734]
[1772970139530,0.89955363,1948.1,1947.2,5.13555734]
[1772970139833,0.89955363,1948.1,1947.3,2.11282889]
[1772970141139,0.89955363,1948.1,1947.4,0.829]
[1772970141140,0.89955363,1948.0,1947.4,0.829]
[1772970142633,0.89955363,1948.0,1947.1,0.0011]
[1772970142818,0.89955363,1948.0,1947.5,0.829]
[1772970143014,0.89955363,1948.0,1947.6,1.28363113]
[1772970143846,0.001,1947.9,1947.6,1.28363113]
[1772970148440,0.001,1948.3,1947.7,0.18399347]
[1772970149424,0.001,1948.3,1947.8,1.28349933]
[1772970149664,0.001,1948.3,1947.8,1.46564539]
[1772970149842,0.001,1948.3,1947.9,0.18214606]
[1772970150041,0.89955363,1948.9,1948.0,0.829]
[1772970150225,0.89955363,1948.9,1948.1,0.86551543]
[1772970150858,0.00153886,1949.0,1948.2,0.86551543]
[1772970151739,0.00153886,1949.0,1948.3,2.14868537]
[1772970151939,0.00153886,1949.0,1948.4,0.86551543]
[1772970152295,0.00153886,1949.0,1948.5,1.69451543]
[1772970152955,0.00153886,1949.0,1948.5,0.86551543]
[1772970153155,0.00153886,1949.0,1948.6,0.829]
[1772970153762,0.00153886,1949.0,1948.7,1.28290655]
[1772970153960,0.00153886,1949.0,1948.8,0.829]
[1772970154162,0.00153886,1949.0,1948.6,0.829]
[1772970155859,0.00153886,1949.0,1948.7,1.28290655]
[1772970156065,0.001,1948.9,1948.7,1.28290655]
[1772970159964,0.001,1948.9,1948.8,0.829]
[1772970160672,0.001,1948.9,1948.5,0.829]
[1772970160673,0.88378999,1948.9,1948.5,0.829]
[1772970162072,0.88378999,1948.9,1948.6,1.28297239]
[1772970162277,0.88378999,1948.9,1948.5,2.11198635]
[1772970163273,0.88378999,1948.9,1948.5,1.28298635]
[1772970163460,0.88278999,1948.8,1948.6,0.829]
[1772970164172,0.88278999,1948.8,1948.1,5.13317817]
[1772970164648,0.88278999,1948.8,1948.2,0.829]
[1772970165568,0.001,1948.9,1948.3,2.487]
[1772970165878,0.88378999,1948.9,1948.3,2.487]
[1772970166382,0.88278999,1948.8,1948.1,5.13305316]
[1772970166549,0.88278999,1948.8,1948.2,0.829]
[1772970166948,0.88278999,1948.8,1948.3,2.487]
[1772970167154,0.001,1948.9,1948.3,2.487]
[1772970167475,0.88378999,1948.9,1948.4,2.487]
[1772970167679,0.88278999,1948.8,1948.3,2.487]
[1772970168076,0.88278999,1948.8,1948.4,0.83]
[1772970168462,0.88278999,1948.7,1948.4,0.8311]
[1772970169278,0.88278999,1948.7,1948.4,2.114204]
[1772970170059,0.88278999,1948.7,1948.4,4.601204]
[1772970170363,0.001,1948.9,1948.5,2.46243616]
[1772970170779,0.001,1948.9,1948.7,1.28290655]
[1772970170973,0.001,1948.9,1948.8,0.83]
[1772970171283,3.81434491,1949.6,1948.8,3.29243616]
[1772970171583,0.88278999,1949.5,1948.9,2.46243616]
[1772970172678,0.88278999,1949.5,1949.0,2.46243616]
[1772970172884,0.88278999,1949.5,1948.9,2.46243616]
[1772970173057,0.88278999,1949.5,1949.0,1.28270908]
[1772970174052,1.28231031,1949.7,1949.1,2.46243616]
[1772970174287,2.1651003,1949.7,1949.2,0.831]
[1772970175690,2.1651003,1949.7,1949.2,2.11354788]
[1772970177786,2.1651003,1949.7,1949.2,2.11357213]
[1772970178489,0.88432885,1950.0,1949.2,3.00533131]
[1772970178705,0.88432885,1950.0,1949.3,2.46243616]
[1772970179378,0.88432885,1950.0,1949.4,1.28244588]
[1772970179574,0.00153886,1950.0,1949.4,4.63664122]
[1772970179776,0.00153886,1950.0,1949.5,3.35419534]
[1772970179981,0.00153886,1950.0,1949.6,0.832]
[1772970180467,0.001,1949.9,1949.5,2.46243616]
[1772970180800,0.001,1949.9,1949.6,3.29543616]
[1772970180994,0.001,1949.9,1949.6,0.833]
[1772970181794,0.001,1949.9,1949.7,3.74468471]
[1772970182167,0.001,1949.9,1949.5,1.28234553]
[1772970182367,0.001,1949.9,1949.6,0.833]
[1772970184302,0.001,1949.9,1949.7,2.46243616]
[1772970184500,0.84158338,1949.9,1949.5,0.834]
[1772970186610,0.84158338,1949.9,1949.5,2.11637679]
[1772970187211,2.12371248,1949.9,1949.6,0.835]
[1772970188479,2.12371248,1949.9,1949.5,0.835]
[1772970188679,2.12371248,1949.9,1949.5,1.40930099]
[1772970190391,0.84158338,1949.9,1949.5,2.69167435]
[1772970190775,0.001,1949.9,1949.6,0.57430099]
[1772970190980,0.84158338,1949.9,1949.6,0.57430099]
[1772970191813,0.84158338,1949.9,1949.6,1.41030099]
[1772970192012,0.84158338,1949.9,1949.6,1.41140099]
[1772970192308,0.001,1949.8,1949.6,1.41140099]
[1772970193499,0.001,1949.8,1949.7,0.57430099]
[1772970198120,1.65543231,1950.1,1949.8,0.57430099]
[1772970198314,1.65543231,1950.1,1949.7,0.57430099]
[1772970199619,1.65543231,1950.1,1949.6,3.04083343]
[1772970199821,1.65543231,1950.1,1949.7,0.57430099]
[1772970202293,1.65543231,1950.1,1949.7,1.41330099]
[1772970202623,1.65543231,1950.1,1949.8,0.57430099]
[1772970203921,1.65543231,1950.1,1949.9,0.57430099]
[1772970204221,1.65543231,1950.1,1949.8,0.57430099]
[1772970205422,1.65543231,1950.1,1949.8,0.92142629]
[1772970205423,1.28201212,1950.1,1949.8,0.92142629]
[1772970205598,0.34450228,1950.2,1949.9,0.57430099]
[1772970205797,0.34450228,1950.2,1949.9,1.49572728]
[1772970206223,0.34450228,1950.2,1950.0,1.49572728]
[1772970206531,1.28176368,1950.5,1950.1,1.76042629]
[1772970206826,2.12228634,1950.6,1950.1,3.04238799]
[1772970207034,0.84058338,1950.7,1950.2,0.57430099]
[1772970207220,0.84058338,1950.7,1950.1,0.839]
[1772970207733,5.12610211,1950.9,1950.2,0.92142629]
[1772970207734,2.12207688,1950.9,1950.2,0.92142629]
[1772970207934,1.28296129,1951.0,1950.2,0.92142629]
[1772970208140,0.00153886,1951.0,1950.2,0.92142629]
[1772970208421,1.28294213,1951.0,1950.2,0.92142629]
[1772970208592,0.00153886,1951.0,1950.2,0.92142629]
[1772970208928,0.84212224,1951.0,1950.1,0.839]
[1772970210008,0.84212224,1951.0,1950.0,0.84]
[1772970210210,0.84058338,1950.8,1950.0,0.84]
[1772970211019,2.1221746,1950.7,1950.0,0.84]
[1772970211209,0.84058338,1950.6,1950.0,0.84]
[1772970211405,0.84058338,1950.6,1949.8,0.0011]
[1772970213123,0.93792852,1950.4,1949.8,0.0011]
[1772970214035,0.93792852,1950.4,1949.8,0.86961608]
[1772970214226,1.28172263,1950.5,1949.8,0.86961608]
[1772970215106,2.21962549,1950.6,1950.0,0.86851608]
[1772970215305,0.93792852,1950.5,1949.8,0.86961608]
[1772970215504,0.93792852,1950.5,1949.8,2.1517846]
[1772970216928,0.93792852,1950.5,1949.8,0.0011]
[1772970217130,0.93792852,1950.3,1949.8,0.0011]
[1772970217914,1.28178835,1950.4,1949.8,0.86961608]
[1772970218341,2.21971687,1950.4,1949.8,0.86961608]
[1772970219347,2.21971687,1950.4,1949.9,0.0011]
[1772970226057,0.93792852,1950.3,1949.9,0.0011]
[1772970226757,1.2819198,1950.2,1949.9,0.0011]
[1772970226950,2.21984832,1950.2,1949.9,0.0011]
[1772970227155,0.93792852,1950.1,1949.8,0.0011]
[1772970229057,2.2199798,1950.0,1949.8,0.0011]
[1772970229832,0.93792852,1949.9,1949.8,0.0011]
[1772970230053,0.93792852,1949.9,1949.7,0.0011]
[1772970231163,2.2201113,1949.8,1949.7,0.0011]
[1772970236351,0.93792852,1950.0,1949.7,0.0011]
[1772970238575,1.28211703,1949.9,1949.7,0.0011]
[1772970238765,1.28211703,1949.9,1949.8,0.0011]
[1772970239591,2.22004555,1949.9,1949.8,0.0011]
[1772970240083,0.93792852,1949.8,1949.4,0.86851608]
[1772970240265,0.93792852,1949.8,1949.3,0.0011]
[1772970240653,1.28224855,1949.7,1949.3,0.0011]
[1772970240851,1.28224855,1949.7,1949.3,0.86961608]
[1772970243960,1.28224855,1949.7,1949.4,0.93643196]
[1772970247068,0.92248696,1949.6,1949.3,0.0011]
[1772970247599,1.28238009,1949.5,1949.3,0.0011]
[1772970247766,1.28229747,1949.7,1949.3,0.08690145]
[1772970248093,0.92248696,1949.8,1949.3,0.08690145]
[1772970248094,1.28223001,1949.8,1949.3,0.08690145]
[1772970248874,2.20471697,1949.8,1949.3,0.08690145]
[1772970250190,2.20471697,1949.8,1949.3,1.369406]
[1772970250489,2.20471697,1949.8,1949.4,0.11090493]
[1772970251165,2.20553952,1950.0,1949.4,0.11090493]
[1772970251489,1.28305256,1950.0,1949.4,0.11090493]
[1772970251692,2.20553952,1950.0,1949.4,0.11090493]
[1772970252087,2.20553952,1950.0,1949.5,0.92903508]
[1772970253381,1.28305256,1950.0,1949.5,0.92903508]
[1772970253591,0.92248696,1949.9,1949.5,0.839]
[1772970255521,2.20465221,1949.9,1949.5,0.839]
[1772970255805,2.20465221,1949.9,1949.5,0.92365287]
[1772970255987,2.20465221,1949.9,1949.5,2.20603281]
[1772970256402,0.001,1949.8,1949.5,2.20603281]
[1772970256591,0.001,1949.8,1949.5,0.92365287]
[1772970257425,0.001,1949.8,1949.5,2.20602891]
[1772970258612,0.001,1949.8,1949.5,0.92365287]
[1772970258910,0.001,1949.8,1949.5,2.20603264]
[1772970260007,0.001,1949.8,1949.5,0.92365287]
[1772970260211,0.001,1949.8,1949.5,2.20602698]
[1772970260514,0.001,1949.8,1949.5,2.20602371]
[1772970260810,0.92348696,1949.8,1949.5,0.839]
[1772970264981,0.92248696,1949.7,1949.4,0.0011]
[1772970266394,2.20474196,1949.7,1949.4,0.0011]
[1772970266595,2.20473958,1949.7,1949.4,0.0011]
[1772970267999,2.20473958,1949.7,1949.5,0.0011]
[1772970268616,2.20573958,1949.7,1949.5,0.0011]
[1772970269196,0.92248696,1949.6,1949.5,0.0011]
[1772970271329,1.28325262,1949.7,1949.5,0.0011]
[1772970271516,2.20573958,1949.7,1949.5,0.0011]
[1772970272634,0.92348696,1949.7,1949.5,0.0011]
[1772970274133,2.20574861,1949.7,1949.5,0.0011]
[1772970274631,0.92348696,1949.7,1949.5,0.0011]
[1772970275026,0.001,1949.7,1949.5,0.07589457]
[1772970277254,0.001,1949.7,1949.6,0.06929558]
[1772970279862,0.001,1949.7,1949.5,0.0011]
[1772970280460,0.001,1949.7,1949.5,0.06490442]
[1772970280632,0.001,1949.8,1949.6,0.06280442]
[1772970280838,0.001,1950.0,1949.6,0.06390442]
[1772970281160,0.93482535,1949.9,1949.6,0.06390442]
[1772970281336,0.001,1950.0,1949.6,0.06390442]
[1772970281928,0.001,1950.0,1949.8,0.06097863]
[1772970282654,0.001,1950.0,1949.7,0.90421114]
[1772970284053,0.001,1950.0,1949.7,2.1864159]
[1772970285836,0.93582535,1950.0,1949.7,0.845]
[1772970286231,0.93482535,1949.9,1949.7,0.845]
[1772970286626,0.93482535,1949.9,1949.6,0.0011]
[1772970288160,1.28218278,1949.8,1949.6,0.0011]
[1772970288928,0.93482535,1949.7,1949.4,0.0011]
[1772970289258,1.28218278,1949.8,1949.0,0.00153886]
[1772970289259,0.93482535,1949.2,1949.0,0.00153886]
[1772970290469,2.21740281,1949.2,1949.0,0.00153886]
[1772970291985,0.93482535,1949.2,1949.0,0.00153886]
[1772970292151,2.21740281,1949.2,1949.0,0.00153886]
[1772970293070,2.21740281,1949.2,1949.0,0.00263886]
[1772970294276,0.93482535,1949.1,1949.0,0.00263886]
[1772970294476,2.21746862,1949.1,1949.0,0.00263886]
[1772970294880,0.93482535,1949.0,1948.9,0.0011]
[1772970295389,0.93482535,1949.0,1948.5,0.0011]
[1772970295594,0.93482535,1949.0,1948.5,0.0055]
[1772970296153,0.93482535,1949.0,1948.2,0.50418633]
[1772970296553,0.93482535,1948.8,1948.2,0.50418633]
[1772970298590,1.28284857,1948.8,1948.3,0.0330297]
[1772970298959,2.21767392,1948.8,1948.3,0.0330297]
[1772970299189,0.93482535,1948.7,1948.3,0.0330297]
[1772970299687,2.21766109,1948.9,1948.3,0.0330297]
[1772970301057,2.21761669,1948.9,1948.4,1.31256072]
[1772970301257,0.93482535,1948.9,1948.4,1.31256072]
[1772970301584,2.2174976,1949.1,1948.5,0.02767451]
[1772970302275,0.93482535,1949.0,1948.5,0.02767451]
[1772970303688,2.21759809,1949.0,1948.5,0.02767451]
[1772970303859,2.21759809,1949.0,1948.5,1.31070311]
[1772970304060,0.93482535,1949.0,1948.5,1.31070311]
[1772970304262,2.18306997,1949.2,1948.6,0.02282078]
[1772970304461,0.90049251,1949.1,1948.6,0.02282078]
[1772970304782,0.90049251,1949.1,1948.2,1.35318633]
[1772970304961,0.90049251,1948.9,1948.2,1.35318633]
[1772970305162,0.90049251,1948.9,1948.5,0.0011]
[1772970305758,0.89994251,1948.7,1948.5,0.0011]
[1772970306083,0.89994251,1948.7,1948.3,0.0011]
[1772970306286,1.04388229,1948.7,1948.0,0.00153886]
[1772970306581,0.89994251,1948.6,1948.0,0.00153886]
[1772970306787,0.89994251,1948.4,1948.0,0.00153886]
[1772970307652,0.89994251,1948.2,1948.0,0.00153886]
[1772970308383,2.18306656,1948.4,1948.0,0.00153886]
[1772970308555,0.89994251,1948.3,1948.0,0.00153886]
[1772970309475,2.1830235,1948.5,1948.0,0.00153886]
[1772970310390,2.1830235,1948.5,1948.0,0.02932999]
[1772970310588,2.18298614,1948.5,1948.0,0.02932999]
[1772970310794,0.89994251,1948.5,1948.0,0.02932999]
[1772970310961,2.18298675,1948.5,1948.0,0.02932999]
[1772970311868,2.18298775,1948.5,1948.0,0.02932999]
[1772970312073,2.18298775,1948.5,1948.0,1.3126706]
[1772970312277,2.18298775,1948.5,1948.0,1.3126964]
[1772970312594,2.18298775,1948.5,1948.0,0.02932999]
[1772970312798,2.18298775,1948.5,1947.9,1.28336997]
[1772970312799,0.89994251,1948.2,1947.6,0.0011]
[1772970313187,0.89994251,1948.2,1947.7,0.20731532]
[1772970314100,1.28304086,1948.5,1947.9,0.20731532]
[1772970314479,0.89994251,1948.5,1947.9,0.20731532]
[1772970315194,1.28300941,1948.6,1947.9,0.20731532]
[1772970315981,2.18290482,1948.7,1947.9,0.20731532]
[1772970316901,5.13240117,1949.0,1947.9,0.20731532]
[1772970316902,0.89994251,1948.9,1948.1,2.38898843]
[1772970317078,0.90094251,1948.9,1948.3,0.20054001]
[1772970317703,0.001,1948.9,1948.3,0.20054001]
[1772970319079,0.001,1948.9,1948.5,0.19603475]
[1772970321076,0.001,1948.9,1948.7,0.19154444]